Cogmind - Beta 17 @@@ ROGUE MODE // 2026.08.05 @ 19:03:15 Player: Quad Result: Destroyed self with Rocket Launcher Performance ------------- Evolutions (2) 1000 Regions Visited (4) 800 Robots Destroyed (62) 310 Value Destroyed (1979) 1979 Prototype IDs (3) 60 Alien Tech Used (0) 0 Bonus (0) 0 TOTAL SCORE: 4149 Bonus ------- None Cogmind --------- Core Integrity 0/550 Matter 145/300 Energy 96/100 System Corruption 5% Temperature Cool (0) Movement Treading (155) Location -8/Materials Parts ------- > --- POWER (1) -------- (None) > --- PROPULSION (3) --- Light Treads Light Treads Advanced Treads > --- UTILITY (4) ------ (None) > --- WEAPON (3) ------- Rocket Launcher > --- INVENTORY (5) ---- Cooled Ion Engine Reinforced Deuterium Engine Hardened Heavy Armor Plating Improved Medium Laser Peak State ------------ > --- POWER ------------ Reinforced Deuterium Engine > --- PROPULSION ------- Advanced Treads Advanced Treads Advanced Treads > --- UTILITY ---------- Small Storage Unit Terrain Scanner Terrain Scan Processor Targeting Computer > --- WEAPON ----------- Beam Rifle Improved Medium Laser Improved Medium Laser > --- INVENTORY -------- Cooled Ion Engine Cooled Ion Engine Heat Sink Terrain Scanner Improved Medium Laser [Rating: 27] Favorites ----------- Power Ion Engine Engine Ion Engine Propulsion Aluminum Leg Treads Advanced Treads Leg Aluminum Leg Utility Small Storage Unit Device Terrain Scanner Storage Small Storage Unit Processor Terrain Scan Processor Protection Light Armor Plating Weapon EM Pulse Gun Energy Gun EM Pulse Gun Launcher Rocket Launcher Build | -11 -10 -9 -9 -8 ------- Run | Yrd Mat Mat Sto Mat Slots Evolved 4 | . . 2 . 2 Power . | . . . . . Propulsion 1 | . . 1 . . Utility 2 | . . 1 . 1 Weapon 1 | . . . . 1 Parts Attached 46 | 5 3 10 11 17 Power 5 | 1 . . 1 3 Engine 5 | 1 . . 1 3 Core . | . . . . . Reactor . | . . . . . Propulsion 18 | 1 1 3 5 8 Treads 9 | . . . 1 8 Leg 9 | 1 1 3 4 . Wheel . | . . . . . Hover . | . . . . . Flight . | . . . . . Utility 9 | 1 1 4 2 1 Device 3 | . . 2 1 . Storage 3 | 1 . 2 . . Processor 2 | . . . 1 1 Hackware . | . . . . . Protection 1 | . 1 . . . Artifact . | . . . . . Weapon 14 | 2 1 3 3 5 Energy Gun 13 | 2 1 3 3 4 Energy Cannon . | . . . . . Ballistic Gun . | . . . . . Ballistic Cannon . | . . . . . Launcher 1 | . . . . 1 Special Weapon . | . . . . . Impact Weapon . | . . . . . Slashing Weapon . | . . . . . Piercing Weapon . | . . . . . Special Melee Weapon . | . . . . . Unidentified Prototypes 1 | . . 1 . . Parts Lost 22 | . 1 1 10 10 Power 3 | . . . 2 1 Propulsion 8 | . . 1 5 2 Utility 6 | . 1 . . 5 Weapon 5 | . . . 3 2 Highest Loss Streak 7 | . 1 1 5 7 To Critical Strikes . | . . . . . Average Backups 5 | 1 5 6 6 5 Power 1 | . 1 1 2 1 Propulsion . | . 1 1 . . Utility 2 | . 2 3 3 1 Weapon . | . 1 . . 1 Tool/Special . | . . . . . Unused Backups 7 | . . 3 1 3 Power 2 | . . 2 . . Propulsion 2 | . . 1 1 . Utility 3 | . . . . 3 Weapon . | . . . . . Tool/Special . | . . . . . Average Slot Usage (%) 84 | . 83 89 89 73 Engine 10 | . 14 11 10 5 Treads 3 | . . . . 19 Leg 18 | . 14 30 24 2 Device 8 | . . 13 12 8 Storage 11 | . 14 11 11 7 Processor 4 | . . . 9 9 Protection 3 | . 11 . . . Energy Gun 22 | . 28 22 20 19 Peak Build Rating 27 | 5 6 13 16 27 Average Rating 11 | 4 5 10 13 19 On Entrance 7 | . 5 6 13 12 Avg Prop Armor Cover (%) . | . . . . . Naked Turns 19 | . . . . 19 Heaviest Build 24 | 14 16 17 20 24 Greatest Support 66 | 10 20 33 33 66 Greatest Overweight (x) 5 | 4 1 . 5 1 Average Overweight (x) . | 1 . . . . Largest Inventory Capacity 20 | 8 8 20 8 8 Average Capacity 7 | 7 8 8 8 7 Most Carried 8 | 2 8 8 8 8 Average Carried 5 | 1 5 6 6 5 Final Capacity 8 | 8 8 8 8 5 Final Carried 8 | 2 8 8 8 5 Class Distribution -------------------- 58% | Mutant 30% | Scavenger-Mutant 6% | Skirmisher 3% | Scavenger-Skirmisher Dominant Class ---------------- Mutant | -10/Materials Mutant | -9/Materials Scavenger-Mutant | -9/Storage Skirmisher | -8/Materials Resources | -11 -10 -9 -9 -8 ----------- Run | Yrd Mat Mat Sto Mat Matter Collected 800 | 233 37 138 130 262 Remotely . | . . . . . Salvage Created 2327 | . 137 510 962 718 Parts 133 | . 11 31 53 38 Haulers Intercepted 3 | . . 1 2 . Recyclers Shooed 1 | . . 1 . . Parts Field Recycled . | . . . . . Retrieved Matter . | . . . . . Parts Self-Destructed . | . . . . . Prevented . | . . . . . Parts Restored . | . . . . . Kills | -11 -10 -9 -9 -8 ------- Run | Yrd Mat Mat Sto Mat Combat Hostiles Destroyed 42 | . 3 7 17 15 Guns 27 | . . 7 15 5 AOE 14 | . 3 . 2 9 Classes Destroyed 13 | . 2 5 1 5 Worker 2 | . . . . 2 Builder 4 | . . 1 1 2 Tunneler 1 | . . . . 1 Hauler 3 | . . 1 2 . Recycler 1 | . . 1 . . Operator 2 | . 1 . 1 . Watcher 7 | . . 3 2 2 Swarmer 2 | . . . 2 . Grunt 24 | . 3 6 6 9 Brawler 1 | . . . . 1 Sentry 13 | . . 1 9 3 Hunter 1 | . . . . 1 Heavy 1 | . . . . 1 Best Kill Streak 14 | . 3 7 5 14 Combat Bots Only 9 | . 3 2 3 9 Max Kills in Single Turn 4 | . 3 1 2 4 Gunslinging . | . . . . . Exploded 3 | . 3 . 1 3 Melee . | . . . . . Uniques/NPCs Destroyed . | . . . . . Combat | -11 -10 -9 -9 -8 -------- Run | Yrd Mat Mat Sto Mat Hostile Shots Fired 281 | . 8 48 104 121 Missed 75 | . 1 14 33 27 Hits 206 | . 7 34 71 94 Melee 3 | . . . . 3 Projectile 203 | . 7 34 71 91 AOE 1 | . . . . 1 Critical Strikes 6 | . . 2 1 3 Damage Taken 3500 | . 223 461 963 1853 Core 738 | . . 79 103 556 Absorbed by Shields . | . . . . . Regen/Repaired (Parts) 42 | . . . 42 . Core Remaining (%) 84 | 100 100 . 54 . Volleys Fired 167 | . 16 34 68 49 Largest 3 | . 2 2 2 3 Hottest 168 | . 80 85 112 168 Shots Fired 308 | . 31 59 121 97 Gun 293 | . 31 59 121 82 Cannon . | . . . . . Launcher 15 | . . . . 15 Special . | . . . . . Kinetic . | . . . . . Thermal 189 | . 10 16 81 82 Explosive 15 | . . . . 15 Electromagnetic 104 | . 21 43 40 . Robot Hit Streak 24 | . 4 7 24 9 Robot Miss Streak 4 | . 1 4 4 4 Penetration Max . | . . . . . Secondary Targets 3 | . . 1 1 1 Max Gunslinging Chain 1 | . . 1 1 1 Shots Hit Robots 190 | . 11 39 89 51 Core Hits 110 | . 6 24 40 40 Critical Kills . | . . . . . Critical Parts Destroyed . | . . . . . Critical Strikes 13 | . . . 10 3 Burn 13 | . . . 10 3 Melee Attacks . | . . . . . Impact . | . . . . . Slashing . | . . . . . Piercing . | . . . . . Sneak Attacks . | . . . . . Combat Hostiles . | . . . . . Follow-up Attacks . | . . . . . Damage Inflicted 4065 | . 317 583 1460 1705 Guns 2735 | . 119 540 1346 730 Cannons . | . . . . . Explosions 1330 | . 198 43 114 975 Melee . | . . . . . Ramming . | . . . . . Kinetic . | . . . . . Thermal 2031 | . 95 168 1038 730 Explosive 1130 | . 155 . . 975 Electromagnetic 904 | . 67 415 422 . Impact . | . . . . . Slashing . | . . . . . Piercing . | . . . . . Highest Corruption 5 | . 2 . . 5 Average Corruption 2 | . 2 . . 5 Corruption Purged . | . . . . . Corruption Blocked . | . . . . . Effects 10 | . 8 . . 2 Message Errors 2 | . 2 . . . Matter Fused 4 | . 2 . . 2 Energy Discharges 1 | . 1 . . . Data Loss (minor) 2 | . 2 . . . Data Loss (major) 1 | . 1 . . . Overload Shots . | . . . . . Overflow Damage 43 | . . . 31 12 Projectiles . | . . . . . Explosions 43 | . . . 31 12 Melee . | . . . . . Knockbacks . | . . . . . Impact . | . . . . . Kinetic . | . . . . . Secondary . | . . . . . Self-Inflicted Damage 264 | . 147 . 39 78 Shots 7 | . 3 . 1 3 Rammed . | . . . . . Targets Rammed . | . . . . . Kicked . | . . . . . Crushed . | . . . . . Highest Temperature 619 | . 108 140 320 619 Average Temperature 138 | . 44 53 82 281 Received Heat Transfer 1329 | . 42 267 306 714 Effects 24 | . . . 1 23 Shutdowns 5 | . . . . 5 Energy Bleed 1 | . . . . 1 Interference 8 | . . . 1 7 Matter Decay 2 | . . . . 2 Short Circuit 2 | . . . . 2 Damage (minor) 1 | . . . . 1 Damage (major) 4 | . . . . 4 Damage (core) 1 | . . . . 1 Siege Activations . | . . . . . Martial Activations . | . . . . . Shielding Activations . | . . . . . Robots Disrupted . | . . . . . Combat Hostiles . | . . . . . Robots Corrupted . | . . . . . Combat Hostiles . | . . . . . Parts Fried 2 | . . 1 1 . Impact Corruptions . | . . . . . Robots Melted 2 | . . . 1 1 Combat Hostiles 1 | . . . . 1 Parts Melted 14 | . . . 10 4 Heat Transferred 5422 | . 125 350 3060 1887 Parts Sabotaged . | . . . . . Parts Stolen . | . . . . . Parts Stripped . | . . . . . Power Chain Reactions 4 | . 1 1 2 . Alert | -11 -10 -9 -9 -8 ------- Run | Yrd Mat Mat Sto Mat Maximum Alert Level 1 | . . . . 1 Low Security (%) 98 | 100 100 100 100 91 Level 1 1 | . . . . 8 Level 2 . | . . . . . Level 3 . | . . . . . Level 4 . | . . . . . Level 5 . | . . . . . High Security . | . . . . . Max Security . | . . . . . Peak Influence 373 | . 154 76 134 373 Initial 61 | . . 61 12 51 Average 36 | . 4 47 44 65 Influence Increases 1557 | . 196 201 525 635 Destroy 0b10 Robot/C 840 | . 60 140 340 300 Destroy 0b10 Robot/NC 100 | . 5 30 30 35 Destroy Leader 250 | . 20 28 108 94 Successful Hack 33 | . 12 . 9 12 Disable Machine 105 | . 60 . . 45 Destroy Structure 124 | . 39 3 8 74 Lose Combat Pursuer 105 | . . . 30 75 Influence Decreases 1174 | . 50 317 433 374 Entered New Map 174 | . . 85 18 71 Time Decay 809 | . 40 222 335 212 Lost Part 191 | . 10 10 80 91 Squads Dispatched 10 | . 3 . 3 4 Investigation 4 | . 2 . 1 1 Extermination . | . . . . . Reinforcement 5 | . 1 . 1 3 Assault . | . . . . . Garrison 1 | . . . 1 . Intercept . | . . . . . Searches Triggered . | . . . . . Construction Impeded 1 | . . . . 1 Haulers Reinforced . | . . . . . Active Scanning Responses . | . . . . . Cargo Convoy Interrupts . | . . . . . Stealth | -11 -10 -9 -9 -8 --------- Run | Yrd Mat Mat Sto Mat Distress Signals 7 | . . . 1 6 Communications Jammed . | . . . . . Distress Signals . | . . . . . Times Spotted 69 | . 6 11 25 27 Peak Tracking Total 7 | . 3 3 6 7 Tactical Retreats 5 | . . . 1 4 Traps | -11 -10 -9 -9 -8 ------- Run | Yrd Mat Mat Sto Mat Traps Triggered 2 | . 2 . . . Indirectly . | . . . . . Trap Hack Attempts . | . . . . . Triggered . | . . . . . Disarmed . | . . . . . Reprogrammed . | . . . . . Reused . | . . . . . Traps Extracted . | . . . . . Installed . | . . . . . Triggered . | . . . . . Machines | -11 -10 -9 -9 -8 ---------- Run | Yrd Mat Mat Sto Mat Machines Disabled 7 | . 4 . . 3 Max in Single Turn 2 | . 2 . . 1 Machines Repaired . | . . . . . Machines Dismantled . | . . . . . Machines Sabotaged . | . . . . . Overloaded Fab Kills . | . . . . . Hacking | -11 -10 -9 -9 -8 --------- Run | Yrd Mat Mat Sto Mat Machines Accessed 23 | . 7 5 9 2 Terminals 18 | . 5 4 7 2 Fabricators . | . . . . . Repair Stations 1 | . . . 1 . Recycling Units 3 | . 2 . 1 . Scanalyzers 1 | . . 1 . . Garrison Access . | . . . . . Total Hacks 49 | . 16 7 21 5 Successful 16 | . 6 1 7 2 Failed 33 | . 10 6 14 3 Catastrophic 11 | . 4 3 4 . Database Lockouts . | . . . . . Manual 34 | . 8 7 15 4 Terminals 38 | . 12 6 15 5 Fabricators . | . . . . . Repair Stations 4 | . . . 4 . Recycling Units 6 | . 4 . 2 . Scanalyzers 1 | . . 1 . . Garrison Access . | . . . . . Terminal Hacks 9 | . 3 1 4 1 Record 2 | . . . 1 1 Prototype ID Bank 1 | . 1 . . . Open Door 2 | . . . 2 . Branch Access Points 2 | . . 1 1 . Emergency Access Points 1 | . 1 . . . Recall Investigation 1 | . 1 . . . Fabricator Hacks . | . . . . . Repair Station Hacks 2 | . . . 2 . Scan Component 1 | . . . 1 . Repair 1 | . . . 1 . Recycling Unit Hacks 3 | . 2 . 1 . Report Inventory 3 | . 2 . 1 . Scanalyzer . | . . . . . Garrison Access Hacks . | . . . . . Unauthorized Hacks 2 | . 1 . . 1 Terminals 2 | . 1 . . 1 Track 2 | . 1 . . 1 Fabricators . | . . . . . Repair Stations . | . . . . . Recycling Units . | . . . . . Scanalyzers . | . . . . . Garrison Access . | . . . . . Data Cores Recovered . | . . . . . Used . | . . . . . Hacking Detections 19 | . 7 3 7 2 Full Trace Events 4 | . 2 . 1 1 Feedback Events . | . . . . . Feedback Blocked . | . . . . . Robot Schematics Acquired . | . . . . . Robots Built . | . . . . . Authchips . | . . . . . Time . | . . . . . Total Robot Build Rating . | . . . . . Part Schematics Acquired . | . . . . . Parts Built . | . . . . . Authchips . | . . . . . Time . | . . . . . Total Part Build Rating . | . . . . . Part Studies Acquired . | . . . . . Parts Repaired 1 | . . . 1 . Time 32 | . . . 32 . Parts Recycled . | . . . . . Recycled Matter . | . . . . . Retrieved Matter . | . . . . . Retrieved Components . | . . . . . Parts Scanalyzed . | . . . . . Part Schematics Acquired . | . . . . . Parts Damaged . | . . . . . Bothacking | -11 -10 -9 -9 -8 ------------ Run | Yrd Mat Mat Sto Mat Used RIF Installer . | . . . . . Robots Hacked . | . . . . . Non-combat . | . . . . . Combat . | . . . . . Robot Hacks Applied . | . . . . . Relay Couplers Released . | . . . . . Fabnet Peak Effective % . | . . . . . Robots Rewired . | . . . . . Allies Hacked . | . . . . . Hacks Repelled . | . . . . . Allies | -11 -10 -9 -9 -8 -------- Run | Yrd Mat Mat Sto Mat Total Allies . | . . . . . Largest Group . | . . . . . Highest-Rated Group . | . . . . . Highest-Rated Ally . | . . . . . Total Orders . | . . . . . Ally Attacks . | . . . . . Total Damage . | . . . . . Kills . | . . . . . Allies Corrupted . | . . . . . Allies Melted . | . . . . . Intel | -11 -10 -9 -9 -8 ------- Run | Yrd Mat Mat Sto Mat Active Infowar (turns) 1342 | . . 269 893 180 Terrain 932 | . . . 752 180 Structural 410 | . . 269 141 . Robot Analysis Total . | . . . . . Derelict Logs Recovered . | . . . . . Drone Launches . | . . . . . Drone Recoveries . | . . . . . Exploration | -11 -10 -9 -9 -8 ------------- Run | Yrd Mat Mat Sto Mat Turns Passed 2665 | 68 750 475 902 470 Spaces Moved 1209 | 33 305 230 466 175 Core 56 | 10 . . 1 45 Treads 121 | . . . 15 106 Legs 1032 | 23 305 230 450 24 Wheels . | . . . . . Hover . | . . . . . Flight . | . . . . . Fastest Speed 50 | 50 120 120 120 50 Average Speed 139 | 180 187 120 122 121 Slowest Speed 300 | 250 190 120 300 225 Overloaded Moves . | . . . . . Propulsion Burnouts . | . . . . . Robots Hopped . | . . . . . Potential Cave-ins . | . . . . . Cave-ins Triggered . | . . . . . Exploration Rate (%) 35 | 3 55 36 60 22 Regions Visited 4 Branch Regions 1 Pre-discovered Areas . | . . . . . Known Exits Taken 1 | . . 1 . . Unknown Exits Taken 3 | 1 1 . 1 . Scrap Searched . | . . . . . Spaces Dug . | . . . . . Terrain Destroyed 163 | . 58 3 6 96 Melee . | . . . . . Projectile . | . . . . . AOE 163 | . 58 3 6 96 Terrain Rammed . | . . . . . Walls Destroyed . | . . . . . Machines Disabled . | . . . . . Actions | -11 -10 -9 -9 -8 --------- Run | Yrd Mat Mat Sto Mat Total 1882 | 39 450 370 673 350 Wait 408 | . 121 79 115 93 Move 1205 | 32 304 229 465 175 Hop . | . . . . . Pick Up 19 | 2 6 6 4 1 Fast Attach 35 | 5 2 8 9 11 Attach 11 | . . 2 3 6 Detach 3 | . . . 1 2 Swap 11 | . 1 2 4 4 Drop 23 | . . 10 4 9 Fire 167 | . 16 34 68 49 Melee . | . . . . . Ram . | . . . . . Kick . | . . . . . Crush . | . . . . . Escape Stasis . | . . . . . Rewire . | . . . . . Trap . | . . . . . Miscellaneous . | . . . . . Route ------- -11/Scrapyard -10/Materials -9/Materials (discovered 3 exits: *Min x2 / *Sto) -9/Storage (discovered 2 exits: *Mat / Rec) -8/Materials History --------- Turn | Location | Event 40 | -11/Scrapyard | Discovered new exit (range 14) 69 | -11/Scrapyard | Entered Materials 304 | -10/Materials | Build established: Mutant 726 | -10/Materials | Discovered new exit (range 8) 819 | -10/Materials | Entered another Materials area 819 | -9/Materials | Evolved 2 slots: Propulsion x1, Utility x1 1093 | -9/Materials | Discovered new exit (range 16) 1109 | -9/Materials | Identified exit to Mines 1109 | -9/Materials | Identified exit to Storage 1294 | -9/Materials | Entered Storage 1342 | -9/Storage | Repaired EM Shotgun 1454 | -9/Storage | Lost 3 parts (1p1n1w) 1493 | -9/Storage | Identified exit to Recycling 1713 | -9/Storage | Build established: Scavenger-Mutant 1986 | -9/Storage | Lost 5 parts (3n2w) 2099 | -9/Storage | Discovered new exit (range 16) 2135 | -9/Storage | Garrison activated, responded to threat 2196 | -9/Storage | Entered Materials 2196 | -8/Materials | Evolved 2 slots: Utility x1, Weapon x1 2565 | -8/Materials | Core integrity fell below 50% 2587 | -8/Materials | Core integrity fell below 20% 2600 | -8/Materials | Lost 7 parts (1p2n3u1w) 2665 | -8/Materials | Destroyed 9 combat bots 2666 | -8/Materials | Destroyed self with Rocket Launcher Last Messages --------------- 02655_ U-05 Engineer lays Concrete. 02656_ K-01 Serf collects debris. 02656_ U-05 Engineer lays Concrete. 02657_ K-01 Serf collects debris. 02658_ U-05 Engineer lays Concrete. 02658_ U-05 Engineer builds a Wall. 02658_ U-05 Engineer lays Concrete. 02659_ U-05 Engineer builds a Wall. 02659_ U-05 Engineer lays Concrete. 02659_ K-01 Serf collects debris. 02660_ Acquired 33 matter. 02660_ U-05 Engineer lays Concrete. 02660_ K-01 Serf collects debris. 02661_ U-05 Engineer lays Concrete. 02661_ K-01 Serf collects debris. 02663_ U-05 Engineer lays Concrete. 02664_ K-01 Serf collects debris. 02664_ Acquired 7 matter. 02665_ U-05 Engineer lays Concrete. 02666_ Terminal disabled. Map ----- +----------------------------------------------------+ | ??????????????????????????????????????????????#?#? | | ????????????????????????????????????????????????## | | ???????????????????????????????????????????????#?# | | ?????????????????????????????????????????????????# | | ????????????????????????????????????????######??## | | ????????????????????????????????????????# #??? | | ????????????????????????????????????????# ##?? | | ??????????????????????????????########??# ##?? | | ??????????????????????????????# # # ? | | ??????????????????????????????# # # | | ??????????????????????????????# """ # # | | ??????????????????????????????# """ # #?! | | ??????????????????????????????# """ # #? | | ??????????????????????????????#]]! # #?? | | ????????????????????????????????] # #?? | | ?????????????????????????????????? # #??? | | ????????????????????????????????### # #??? | | ???????????????????????????????## ## +##### | | ???????????????????????????????? T" % % | | ????????????#+###?????#####????## | | ???????????? ???## ###### k%u | | ??????????? ?# # ########### | | ????????????? o # ## #?????# | | ????????????????"" = ] /# #?????#=* | | ???????????????????? %| ####????## ! | | ???????????????????????# @ ! #??????#" | | ???????????????????????# =%k ##??????#" | | ???????????????????????## #??????#" | | ???????????????????? + ##??????#" | | ?????????????????? #### T" # #???????#" | | ????????????????????????# # #???????##* | | ????????????????????????######### # #????????#"" | | ????????????????????????????????### +????????### | | ??????????????????????????????????# #??????????? | | ??????????????????????????????????# #??????????? | | ?????????????????????????????????? % ??????????? | | ?????????????????????????????????? = ??????????? | | ??????????????????????????????????#[% ?????????? | | ???????????????????????????????????% ?????????? | | ??????????????????????????????????? ?????????? | | ??????????????????????????????????? #??????????? | | ?????????????????????????????????????????????????? | | ?????????????????????????????????????????????????? | | ?????????????????????????????????????????????????? | | ?????????????????????????????????????????????????? | | ?????????????????????????????????????????????????? | | ?????????????????????????????????????????????????? | | ?????????????????????????????????????????????????? | | ?????????????????????????????????????????????????? | | ?????????????????????????????????????????????????? | +----------------------------------------------------+ Best States ------------- Heat Dissipation 41 Energy Generation 14 Energy Capacity 280 Matter Stores 300 Matter Capacity 300 Sight Range 16 Terrain Scan Range 14 Terrain Scan Density 85 Armor Coverage 150 Evasion (%) 55 Targeting Accuracy 5 Recoil Reduction 3 Item Schematics ----------------- None Robot Schematics ------------------ None Fabricated ------------ Nothing Repaired ---------- EM Shotgun | 16% | -9/Storage Studied --------- None Alien Tech Used ----------------- None Achievements -------------- None Challenges ------------ None Game ------ Seed RecyclingDimensionalCasing Manual? 0 Play Time 00:45:00 Cumulative 6.9 hours Start 2026.08.05 @ 16:08:35 End 2026.08.05 @ 19:03:15 Sessions 3 Manual Loads 0 Difficulty Rogue Special Mode None Game No. 10 Rogue 8 Adventurer 2 Explorer 0 Win Type - Total 0 Types 0/0/0/0/0/0/0/0/0/0 Lore% 6 Gallery% 11 Achievement% 13 Wizard Run 0 Options --------- Layout 0 ASCII 0 Keyboard 0 Movement Mouse Keybinds 0 Fullscreen 1 Font 18/SmallcapsGlow Map View 76x50 Zoom Use 0% Tactical HUD 1 Map Filters NONE Filters NONE Steam X RUN: ed16ca11-dff1-48f3-9740-4561026c6966